[Event "Early-Titled-Tuesday-Blitz-June-18-2024"]
[Site "Chess.com"]
[Date "2024.06.18"]
[Round "7"]
[White "Hamisandwich"]
[Black "DominguezOnYoutube"]
[Result "0-1"]
[WhiteElo "2755"]
[BlackElo "2914"]
[TimeControl "180+1"]
[EndTime "9:19:59 PDT"]
[Termination "DominguezOnYoutube won on time"]

1. d4 {[%clk 0:02:57]} 1... Nf6 {[%clk 0:02:59.1]} 2. c4 {[%clk 0:02:56.3]} 2...
e6 {[%clk 0:02:59.2]} 3. g3 {[%clk 0:02:50.3]} 3... d5 {[%clk 0:02:58.4]} 4. Nf3
{[%clk 0:02:50]} 4... Be7 {[%clk 0:02:58.7]} 5. Bg2 {[%clk 0:02:48.3]} 5... O-O
{[%clk 0:02:59.2]} 6. O-O {[%clk 0:02:48.3]} 6... c6 {[%clk 0:02:58.9]} 7. Qc2
{[%clk 0:02:44.2]} 7... b6 {[%clk 0:02:58.2]} 8. Rd1 {[%clk 0:02:39]} 8... Nbd7
{[%clk 0:02:56.2]} 9. Bf4 {[%clk 0:02:36.4]} 9... a5 {[%clk 0:02:53.5]} 10. Ne5
{[%clk 0:02:34.1]} 10... Nxe5 {[%clk 0:02:52.5]} 11. dxe5 {[%clk 0:02:30.8]}
11... Nd7 {[%clk 0:02:52.4]} 12. cxd5 {[%clk 0:02:12.5]} 12... cxd5 {[%clk
0:02:53.3]} 13. e4 {[%clk 0:02:12.9]} 13... d4 {[%clk 0:02:53.2]} 14. Rxd4
{[%clk 0:02:08.3]} 14... g5 {[%clk 0:02:52.3]} 15. Be3 {[%clk 0:02:01.1]} 15...
Bc5 {[%clk 0:02:39.4]} 16. Nc3 {[%clk 0:01:48.5]} 16... Qe7 {[%clk 0:02:34]} 17.
Qd2 {[%clk 0:01:31.3]} 17... h6 {[%clk 0:02:07.6]} 18. f4 {[%clk 0:01:23.3]}
18... Bxd4 {[%clk 0:02:02.4]} 19. Bxd4 {[%clk 0:01:11.5]} 19... Nc5 {[%clk
0:01:42.2]} 20. Nb5 {[%clk 0:00:50.3]} 20... gxf4 {[%clk 0:01:31.6]} 21. gxf4
{[%clk 0:00:47.3]} 21... Kh7 {[%clk 0:01:29.9]} 22. Nd6 {[%clk 0:00:37.3]} 22...
Rg8 {[%clk 0:01:28.9]} 23. Qf2 {[%clk 0:00:33.7]} 23... Bb7 {[%clk 0:01:16.7]}
24. Bxc5 {[%clk 0:00:31.3]} 24... bxc5 {[%clk 0:01:17.6]} 25. Qxc5 {[%clk
0:00:29.9]} 25... Rg4 {[%clk 0:01:08]} 26. Rf1 {[%clk 0:00:20.6]} 26... Rag8
{[%clk 0:01:05.4]} 27. Rf2 {[%clk 0:00:21]} 27... Qh4 {[%clk 0:00:53.2]} 28. Qe3
{[%clk 0:00:17.8]} 28... Ba6 {[%clk 0:00:48.4]} 29. Nxf7 {[%clk 0:00:15.5]}
29... Rf8 {[%clk 0:00:48.5]} 30. Nd6 {[%clk 0:00:11]} 30... Rfxf4 {[%clk
0:00:43.1]} 31. Rxf4 {[%clk 0:00:09]} 31... Rxf4 {[%clk 0:00:44]} 32. h3 {[%clk
0:00:05.2]} 32... Kg6 {[%clk 0:00:23.3]} 33. Qb6 {[%clk 0:00:02.4]} 33... Bf1
{[%clk 0:00:15.7]} 34. Bxf1 {[%clk 0:00:01]} 34... Qe1 {[%clk 0:00:14.4]} 0-1

[Event "Early-Titled-Tuesday-Blitz-June-18-2024"]
[Site "Chess.com"]
[Date "2024.06.18"]
[Round "7"]
[White "pfalcon1949"]
[Black "SocoLoco"]
[Result "0-1"]
[WhiteElo "1789"]
[BlackElo "2182"]
[TimeControl "180+1"]
[EndTime "9:20:00 PDT"]
[Termination "SocoLoco won on time"]

1. e4 {[%clk 0:03:00.9]} 1... c5 {[%clk 0:02:59.6]} 2. Nf3 {[%clk 0:02:58.7]}
2... e6 {[%clk 0:02:59.4]} 3. d4 {[%clk 0:02:53.4]} 3... cxd4 {[%clk 0:03:00.3]}
4. Nxd4 {[%clk 0:02:53.5]} 4... Nf6 {[%clk 0:03:00.8]} 5. Nc3 {[%clk 0:02:52.5]}
5... Nc6 {[%clk 0:03:01]} 6. Ndb5 {[%clk 0:02:51.2]} 6... d6 {[%clk 0:03:00.9]}
7. Bf4 {[%clk 0:02:46]} 7... e5 {[%clk 0:03:01]} 8. Bg5 {[%clk 0:02:46.8]} 8...
a6 {[%clk 0:03:01.3]} 9. Na3 {[%clk 0:02:45.3]} 9... b5 {[%clk 0:03:01.4]} 10.
Nd5 {[%clk 0:02:40.8]} 10... Be7 {[%clk 0:03:01.1]} 11. Bxf6 {[%clk 0:02:41.3]}
11... Bxf6 {[%clk 0:03:00.5]} 12. c4 {[%clk 0:02:40.9]} 12... O-O {[%clk
0:02:59.7]} 13. g3 {[%clk 0:02:37.5]} 13... Nd4 {[%clk 0:02:49.9]} 14. cxb5
{[%clk 0:02:24.6]} 14... axb5 {[%clk 0:02:39.9]} 15. Nxb5 {[%clk 0:02:17.9]}
15... Bg4 {[%clk 0:01:45.4]} 16. Qd3 {[%clk 0:01:37.2]} 16... Nf3+ {[%clk
0:01:27.4]} 17. Ke2 {[%clk 0:01:35.3]} 17... Nd4+ {[%clk 0:01:26.5]} 18. Ke1
{[%clk 0:01:34.3]} 18... Bg5 {[%clk 0:01:03]} 19. Nxd4 {[%clk 0:01:15.5]} 19...
exd4 {[%clk 0:01:01.2]} 20. Qxd4 {[%clk 0:01:10.1]} 20... Bf3 {[%clk 0:00:55.3]}
21. Rg1 {[%clk 0:01:06.2]} 21... Re8 {[%clk 0:00:55.5]} 22. Bd3 {[%clk
0:01:03.5]} 22... f5 {[%clk 0:00:51.6]} 23. Nc3 {[%clk 0:00:50.3]} 23... Qa5
{[%clk 0:00:45.4]} 24. Qd5+ {[%clk 0:00:45]} 24... Qxd5 {[%clk 0:00:45.4]} 25.
Nxd5 {[%clk 0:00:45.8]} 25... Bxe4 {[%clk 0:00:42.1]} 26. Bc4 {[%clk 0:00:35.1]}
26... Bd3+ {[%clk 0:00:37.7]} 27. Ne3+ {[%clk 0:00:30.2]} 27... Bxc4 {[%clk
0:00:37.5]} 28. Kd2 {[%clk 0:00:26.3]} 28... d5 {[%clk 0:00:36.5]} 29. b3 {[%clk
0:00:23.6]} 29... Bb5 {[%clk 0:00:36.1]} 30. h4 {[%clk 0:00:21.3]} 30... Bh6
{[%clk 0:00:35]} 31. f4 {[%clk 0:00:19.9]} 31... d4 {[%clk 0:00:32.9]} 32. Nxf5
{[%clk 0:00:19.9]} 32... Re2+ {[%clk 0:00:32]} 33. Kd1 {[%clk 0:00:18]} 33...
Rc8 {[%clk 0:00:32.2]} 34. Rc1 {[%clk 0:00:12.3]} 34... Rxc1+ {[%clk 0:00:31.6]}
35. Kxc1 {[%clk 0:00:13.2]} 35... Rxa2 {[%clk 0:00:32.2]} 36. Kb1 {[%clk
0:00:11.1]} 36... Rh2 {[%clk 0:00:25.4]} 37. Rc1 {[%clk 0:00:03.1]} 37... Bd3+
{[%clk 0:00:24.4]} 38. Ka1 {[%clk 0:00:01.9]} 38... Bxf5 {[%clk 0:00:24.2]} 0-1

[Event "Early-Titled-Tuesday-Blitz-June-18-2024"]
[Site "Chess.com"]
[Date "2024.06.18"]
[Round "7"]
[White "MatthewG-p4p"]
[Black "manitodeplomo"]
[Result "0-1"]
[WhiteElo "2839"]
[BlackElo "2664"]
[TimeControl "180+1"]
[EndTime "9:20:01 PDT"]
[Termination "manitodeplomo won by resignation"]

1. e4 {[%clk 0:02:54]} 1... e6 {[%clk 0:02:56.5]} 2. d4 {[%clk 0:02:52.6]} 2...
d5 {[%clk 0:02:56.6]} 3. e5 {[%clk 0:02:52.9]} 3... c5 {[%clk 0:02:56.2]} 4. c3
{[%clk 0:02:52.8]} 4... Nc6 {[%clk 0:02:56.5]} 5. Nf3 {[%clk 0:02:52.7]} 5...
Bd7 {[%clk 0:02:56.3]} 6. Be2 {[%clk 0:02:52.8]} 6... Nge7 {[%clk 0:02:55.1]} 7.
Na3 {[%clk 0:02:51.9]} 7... a6 {[%clk 0:02:54.2]} 8. O-O {[%clk 0:02:48.4]} 8...
c4 {[%clk 0:02:46.8]} 9. Nc2 {[%clk 0:02:34.2]} 9... b5 {[%clk 0:02:46.2]} 10.
Nfe1 {[%clk 0:02:22.6]} 10... a5 {[%clk 0:02:36.4]} 11. f4 {[%clk 0:02:18.1]}
11... b4 {[%clk 0:02:28.1]} 12. Ne3 {[%clk 0:02:18]} 12... g6 {[%clk 0:02:25.2]}
13. g4 {[%clk 0:01:41]} 13... a4 {[%clk 0:02:15.9]} 14. f5 {[%clk 0:01:13.2]}
14... a3 {[%clk 0:01:53.4]} 15. fxe6 {[%clk 0:01:00.7]} 15... Bxe6 {[%clk
0:01:49.2]} 16. N1g2 {[%clk 0:00:42.3]} 16... Nc8 {[%clk 0:01:31]} 17. Nf4
{[%clk 0:00:39.3]} 17... Nb6 {[%clk 0:01:30]} 18. cxb4 {[%clk 0:00:31.4]} 18...
axb2 {[%clk 0:01:22]} 19. Bxb2 {[%clk 0:00:32.3]} 19... Na4 {[%clk 0:01:06]} 20.
Rb1 {[%clk 0:00:19]} 20... Bxb4 {[%clk 0:01:00.8]} 21. Ba1 {[%clk 0:00:07]}
21... Bc3 {[%clk 0:00:57.3]} 22. Bxc3 {[%clk 0:00:07.6]} 22... Nxc3 {[%clk
0:00:56.8]} 23. Qd2 {[%clk 0:00:07.5]} 23... Nxb1 {[%clk 0:00:56.5]} 24. Rxb1
{[%clk 0:00:08.4]} 24... Qa5 {[%clk 0:00:56.1]} 25. Qc2 {[%clk 0:00:04.5]} 25...
O-O {[%clk 0:00:54]} 26. Qd1 {[%clk 0:00:03.7]} 26... Rfb8 {[%clk 0:00:53.2]}
27. Rc1 {[%clk 0:00:03.8]} 27... Qxa2 {[%clk 0:00:51.9]} 28. Nexd5 {[%clk
0:00:03.5]} 28... Bxd5 {[%clk 0:00:51.1]} 29. Nxd5 {[%clk 0:00:04.4]} 29... Qb2
{[%clk 0:00:48.6]} 30. Nf6+ {[%clk 0:00:04.2]} 30... Kg7 {[%clk 0:00:48.5]} 31.
Bf3 {[%clk 0:00:04.3]} 31... Nxd4 {[%clk 0:00:46.7]} 32. Bxa8 {[%clk 0:00:05]}
32... Qxc1 {[%clk 0:00:46.7]} 33. Qxc1 {[%clk 0:00:05]} 33... Ne2+ {[%clk
0:00:47.2]} 34. Kf2 {[%clk 0:00:05.9]} 34... Nxc1 {[%clk 0:00:47.8]} 35. Bd5
{[%clk 0:00:06.5]} 35... c3 {[%clk 0:00:47.5]} 36. Be4 {[%clk 0:00:05.6]} 36...
Na2 {[%clk 0:00:43.5]} 37. Ke3 {[%clk 0:00:05.7]} 37... Rd8 {[%clk 0:00:43.3]}
38. g5 {[%clk 0:00:03]} 38... Nb4 {[%clk 0:00:43]} 39. Ng4 {[%clk 0:00:01.6]}
39... c2 {[%clk 0:00:42.4]} 40. Bxc2 {[%clk 0:00:02.3]} 40... Nxc2+ {[%clk
0:00:43.3]} 41. Ke4 {[%clk 0:00:02.8]} 41... Rd4+ {[%clk 0:00:42.8]} 42. Kf3
{[%clk 0:00:03.5]} 42... Rxg4 {[%clk 0:00:41.1]} 43. Kxg4 {[%clk 0:00:04.4]}
43... Nd4 {[%clk 0:00:40.8]} 44. Kf4 {[%clk 0:00:05.3]} 44... Ne6+ {[%clk
0:00:40]} 45. Kg4 {[%clk 0:00:06.2]} 45... h6 {[%clk 0:00:39.9]} 46. h4 {[%clk
0:00:07.1]} 46... hxg5 {[%clk 0:00:37.3]} 0-1

[Event "Early-Titled-Tuesday-Blitz-June-18-2024"]
[Site "Chess.com"]
[Date "2024.06.18"]
[Round "7"]
[White "HATilay"]
[Black "RandomNoob04"]
[Result "1-0"]
[WhiteElo "2649"]
[BlackElo "2806"]
[TimeControl "180+1"]
[EndTime "9:20:01 PDT"]
[Termination "HATilay won by resignation"]

1. e4 {[%clk 0:03:00.9]} 1... d5 {[%clk 0:03:00.6]} 2. exd5 {[%clk 0:02:42.4]}
2... Qxd5 {[%clk 0:03:01.5]} 3. Nc3 {[%clk 0:02:38.8]} 3... Qa5 {[%clk
0:03:02.1]} 4. d4 {[%clk 0:02:38.3]} 4... Nf6 {[%clk 0:03:02.7]} 5. Nf3 {[%clk
0:02:38.4]} 5... Bf5 {[%clk 0:03:03.1]} 6. Bc4 {[%clk 0:02:37.6]} 6... e6 {[%clk
0:03:03.4]} 7. O-O {[%clk 0:02:35.6]} 7... Bb4 {[%clk 0:03:04.3]} 8. Bd2 {[%clk
0:02:33.8]} 8... Nc6 {[%clk 0:03:04.4]} 9. a3 {[%clk 0:02:33.9]} 9... Bxc3
{[%clk 0:03:04.7]} 10. Bxc3 {[%clk 0:02:34.7]} 10... Qb6 {[%clk 0:03:05.5]} 11.
a4 {[%clk 0:02:14.9]} 11... a5 {[%clk 0:02:59.5]} 12. Bb5 {[%clk 0:02:10.2]}
12... O-O {[%clk 0:02:58.9]} 13. Qe2 {[%clk 0:01:47.5]} 13... Rfd8 {[%clk
0:02:57.9]} 14. Rad1 {[%clk 0:01:43.8]} 14... Nd5 {[%clk 0:02:47.5]} 15. Bd2
{[%clk 0:01:43.8]} 15... Bxc2 {[%clk 0:02:41.6]} 16. Rc1 {[%clk 0:01:44.4]}
16... Bg6 {[%clk 0:02:38.6]} 17. Bxc6 {[%clk 0:01:42.7]} 17... bxc6 {[%clk
0:02:39.5]} 18. Bg5 {[%clk 0:01:42.9]} 18... Rd6 {[%clk 0:02:30.4]} 19. Rc5
{[%clk 0:01:30.3]} 19... Nb4 {[%clk 0:02:24.2]} 20. Ne5 {[%clk 0:01:01.5]} 20...
Rxd4 {[%clk 0:02:11.6]} 21. Rfc1 {[%clk 0:01:01.9]} 21... Rd5 {[%clk 0:01:42.5]}
22. Be3 {[%clk 0:00:41.8]} 22... Qb7 {[%clk 0:01:42.4]} 23. h4 {[%clk
0:00:16.7]} 23... Rxe5 {[%clk 0:01:22.8]} 24. Rxe5 {[%clk 0:00:17.6]} 24... Nd3
{[%clk 0:01:23.3]} 25. Rg5 {[%clk 0:00:18]} 25... Nxc1 {[%clk 0:01:22.1]} 26.
Bxc1 {[%clk 0:00:18.9]} 26... h6 {[%clk 0:01:11.3]} 27. Rg3 {[%clk 0:00:16.6]}
27... Kh7 {[%clk 0:01:02.7]} 28. Qe5 {[%clk 0:00:08.6]} 28... f6 {[%clk
0:00:57.2]} 29. Qxe6 {[%clk 0:00:08]} 29... Re8 {[%clk 0:00:56.9]} 30. Qg4
{[%clk 0:00:07.6]} 30... Re7 {[%clk 0:00:31.5]} 31. Qxg6+ {[%clk 0:00:07.2]}
31... Kh8 {[%clk 0:00:32.4]} 32. Bxh6 {[%clk 0:00:06.5]} 1-0

[Event "Early-Titled-Tuesday-Blitz-June-18-2024"]
[Site "Chess.com"]
[Date "2024.06.18"]
[Round "7"]
[White "falzehope0"]
[Black "N_Mullodzhanov"]
[Result "1-0"]
[WhiteElo "2448"]
[BlackElo "2547"]
[TimeControl "180+1"]
[EndTime "9:20:01 PDT"]
[Termination "falzehope0 won by checkmate"]

1. d4 {[%clk 0:03:00.9]} 1... Nf6 {[%clk 0:02:59.9]} 2. e3 {[%clk 0:03:00.3]}
2... g6 {[%clk 0:03:00]} 3. Bd3 {[%clk 0:02:57.8]} 3... Bg7 {[%clk 0:03:00.5]}
4. f4 {[%clk 0:02:57.4]} 4... d6 {[%clk 0:03:01.1]} 5. Nf3 {[%clk 0:02:55.7]}
5... O-O {[%clk 0:03:01.2]} 6. O-O {[%clk 0:02:55.8]} 6... c5 {[%clk 0:03:01.1]}
7. c3 {[%clk 0:02:52.1]} 7... Nc6 {[%clk 0:03:00.3]} 8. dxc5 {[%clk 0:02:44.4]}
8... dxc5 {[%clk 0:03:00.1]} 9. Qc2 {[%clk 0:02:44.3]} 9... Bg4 {[%clk
0:02:55.2]} 10. Nbd2 {[%clk 0:02:42.4]} 10... Nd5 {[%clk 0:02:52]} 11. Ne4
{[%clk 0:02:38.2]} 11... Rc8 {[%clk 0:02:46.8]} 12. Qb1 {[%clk 0:02:21.3]} 12...
Qb6 {[%clk 0:02:27.7]} 13. Nf2 {[%clk 0:02:09.8]} 13... Bxf3 {[%clk 0:02:23.8]}
14. gxf3 {[%clk 0:02:10.7]} 14... e5 {[%clk 0:02:24.2]} 15. f5 {[%clk
0:02:08.5]} 15... c4 {[%clk 0:02:21.9]} 16. Bxc4 {[%clk 0:01:57.3]} 16... Nxe3
{[%clk 0:02:21.9]} 17. Bxe3 {[%clk 0:01:54.4]} 17... Qxe3 {[%clk 0:02:22.8]} 18.
fxg6 {[%clk 0:01:50.2]} 18... Qg5+ {[%clk 0:02:21.8]} 19. Kh1 {[%clk 0:01:49.3]}
19... hxg6 {[%clk 0:01:56.2]} 20. Rg1 {[%clk 0:01:35.3]} 20... Qh5 {[%clk
0:01:55.9]} 21. Qxg6 {[%clk 0:01:26.7]} 21... Qxg6 {[%clk 0:01:41]} 22. Rxg6
{[%clk 0:01:25.6]} 22... Nd4 {[%clk 0:01:01]} 23. Rag1 {[%clk 0:01:19.6]} 23...
Nf5 {[%clk 0:01:00.9]} 24. Bb3 {[%clk 0:01:09.5]} 24... Kh7 {[%clk 0:00:48.7]}
25. R6g5 {[%clk 0:01:08.3]} 25... Nh4 {[%clk 0:00:21.5]} 26. Rh5+ {[%clk
0:00:50.3]} 26... Bh6 {[%clk 0:00:21.4]} 27. Rxh4 {[%clk 0:00:40.9]} 27... f5
{[%clk 0:00:20.8]} 28. Nh3 {[%clk 0:00:36.2]} 28... Rc6 {[%clk 0:00:16.9]} 29.
Ng5+ {[%clk 0:00:32.9]} 29... Kg6 {[%clk 0:00:10.7]} 30. Ne6+ {[%clk 0:00:30.9]}
30... Kf6 {[%clk 0:00:09.8]} 31. Rxh6+ {[%clk 0:00:29.9]} 31... Ke7 {[%clk
0:00:10.2]} 32. Rg7+ {[%clk 0:00:20.5]} 32... Ke8 {[%clk 0:00:09.4]} 33. Rhh7
{[%clk 0:00:19]} 33... Rxe6 {[%clk 0:00:05.8]} 34. Bxe6 {[%clk 0:00:19.4]} 34...
Rf6 {[%clk 0:00:05.5]} 35. Re7+ {[%clk 0:00:19]} 35... Kf8 {[%clk 0:00:02.8]}
36. Rxb7 {[%clk 0:00:15.4]} 36... Rxe6 {[%clk 0:00:01.1]} 37. Rh8# {[%clk
0:00:15.1]} 1-0

[Event "Early-Titled-Tuesday-Blitz-June-18-2024"]
[Site "Chess.com"]
[Date "2024.06.18"]
[Round "7"]
[White "Mops_2004"]
[Black "ozates"]
[Result "1-0"]
[WhiteElo "2808"]
[BlackElo "2628"]
[TimeControl "180+1"]
[EndTime "9:20:02 PDT"]
[Termination "Mops_2004 won by resignation"]

1. g3 {[%clk 0:03:00.9]} 1... c5 {[%clk 0:03:00]} 2. Bg2 {[%clk 0:03:00.7]} 2...
Nc6 {[%clk 0:03:00.7]} 3. c4 {[%clk 0:03:00.8]} 3... g6 {[%clk 0:03:01.3]} 4.
Nc3 {[%clk 0:02:57]} 4... Bg7 {[%clk 0:03:01.8]} 5. d3 {[%clk 0:02:57.5]} 5...
d6 {[%clk 0:03:02.1]} 6. Qd2 {[%clk 0:02:57.8]} 6... e5 {[%clk 0:02:55]} 7. b3
{[%clk 0:02:54.7]} 7... Nge7 {[%clk 0:02:54.6]} 8. Bb2 {[%clk 0:02:54.8]} 8...
O-O {[%clk 0:02:55.3]} 9. e3 {[%clk 0:02:54.9]} 9... Be6 {[%clk 0:02:55.1]} 10.
h4 {[%clk 0:02:51.9]} 10... h6 {[%clk 0:02:55]} 11. Nd5 {[%clk 0:02:42.2]} 11...
Rb8 {[%clk 0:02:43.3]} 12. Ne2 {[%clk 0:02:37.1]} 12... b5 {[%clk 0:02:42.1]}
13. h5 {[%clk 0:02:23.2]} 13... Bxd5 {[%clk 0:02:37.5]} 14. cxd5 {[%clk
0:02:19.7]} 14... Nb4 {[%clk 0:02:35.8]} 15. hxg6 {[%clk 0:02:18.4]} 15... fxg6
{[%clk 0:02:35.6]} 16. Nc3 {[%clk 0:02:03.4]} 16... Qd7 {[%clk 0:02:25.2]} 17.
Bh3 {[%clk 0:02:02.4]} 17... Nf5 {[%clk 0:02:17.7]} 18. a3 {[%clk 0:01:53.2]}
18... Na6 {[%clk 0:02:03.7]} 19. e4 {[%clk 0:01:51.8]} 19... b4 {[%clk
0:02:02.4]} 20. axb4 {[%clk 0:01:41.6]} 20... cxb4 {[%clk 0:02:02.5]} 21. Na4
{[%clk 0:01:24.3]} 21... Qb5 {[%clk 0:01:49.2]} 22. exf5 {[%clk 0:01:21.5]}
22... Qxd5 {[%clk 0:01:49.4]} 23. O-O {[%clk 0:01:18.3]} 23... gxf5 {[%clk
0:01:47]} 24. Qd1 {[%clk 0:01:15.9]} 24... f4 {[%clk 0:01:42.6]} 25. Bg2 {[%clk
0:01:14.2]} 25... f3 {[%clk 0:01:41.1]} 26. Bh3 {[%clk 0:01:11.5]} 26... Nc7
{[%clk 0:01:28.2]} 27. Re1 {[%clk 0:01:08.5]} 27... Ne6 {[%clk 0:01:26.3]} 28.
Bg4 {[%clk 0:00:53.9]} 28... h5 {[%clk 0:01:08.4]} 29. Bxh5 {[%clk 0:00:48.6]}
29... e4 {[%clk 0:01:01.1]} 30. Bg4 {[%clk 0:00:48]} 30... Bxb2 {[%clk
0:00:55.8]} 31. Nxb2 {[%clk 0:00:47.9]} 31... Nd4 {[%clk 0:00:51]} 32. dxe4
{[%clk 0:00:32.5]} 32... Qg5 {[%clk 0:00:49.3]} 33. Qxd4 {[%clk 0:00:23.8]}
33... Qxg4 {[%clk 0:00:49.3]} 34. Rxa7 {[%clk 0:00:15.5]} 34... Rb5 {[%clk
0:00:42.1]} 35. Qc4+ {[%clk 0:00:12.4]} 35... Kh8 {[%clk 0:00:20.8]} 36. Qxb5
{[%clk 0:00:12.5]} 36... Qh3 {[%clk 0:00:21.2]} 37. Qf1 {[%clk 0:00:12.7]} 37...
Qh5 {[%clk 0:00:20.5]} 38. Nd3 {[%clk 0:00:11.1]} 38... Rf6 {[%clk 0:00:19.6]}
39. Rc1 {[%clk 0:00:10.1]} 1-0

[Event "Early-Titled-Tuesday-Blitz-June-18-2024"]
[Site "Chess.com"]
[Date "2024.06.18"]
[Round "7"]
[White "pospisku"]
[Black "MarlonJodar"]
[Result "1-0"]
[WhiteElo "2529"]
[BlackElo "2357"]
[TimeControl "180+1"]
[EndTime "9:20:03 PDT"]
[Termination "pospisku won on time"]

1. d4 {[%clk 0:03:00.9]} 1... Nf6 {[%clk 0:02:59.3]} 2. c4 {[%clk 0:03:00.6]}
2... g6 {[%clk 0:02:59.3]} 3. Nc3 {[%clk 0:03:00.1]} 3... d5 {[%clk 0:02:59.6]}
4. cxd5 {[%clk 0:02:59.6]} 4... Nxd5 {[%clk 0:02:59.6]} 5. e4 {[%clk 0:03:00.1]}
5... Nxc3 {[%clk 0:03:00.3]} 6. bxc3 {[%clk 0:03:00.4]} 6... Bg7 {[%clk
0:03:01.2]} 7. Nf3 {[%clk 0:03:01.1]} 7... c5 {[%clk 0:03:01.9]} 8. Bb5+ {[%clk
0:03:00.5]} 8... Nd7 {[%clk 0:02:57.9]} 9. O-O {[%clk 0:02:59.3]} 9... O-O
{[%clk 0:02:57.7]} 10. e5 {[%clk 0:02:51]} 10... e6 {[%clk 0:02:53.1]} 11. h4
{[%clk 0:02:42.3]} 11... Qa5 {[%clk 0:02:39.6]} 12. a4 {[%clk 0:02:23.9]} 12...
a6 {[%clk 0:02:23.8]} 13. Be2 {[%clk 0:02:22.2]} 13... b5 {[%clk 0:00:53.5]} 14.
h5 {[%clk 0:02:20.6]} 14... Bb7 {[%clk 0:00:51.6]} 15. h6 {[%clk 0:02:05.2]}
15... Bh8 {[%clk 0:00:51.7]} 16. Bg5 {[%clk 0:02:05.5]} 16... cxd4 {[%clk
0:00:46.2]} 17. axb5 {[%clk 0:01:36.6]} 17... Qxc3 {[%clk 0:00:43.3]} 18. bxa6
{[%clk 0:01:22.3]} 18... Bd5 {[%clk 0:00:38]} 19. Be7 {[%clk 0:01:13.8]} 19...
Rfe8 {[%clk 0:00:32.7]} 20. Bd6 {[%clk 0:01:13.7]} 20... f6 {[%clk 0:00:20]} 21.
Ra3 {[%clk 0:01:10.8]} 21... Qb2 {[%clk 0:00:16.4]} 22. Qa4 {[%clk 0:00:51.4]}
22... Nxe5 {[%clk 0:00:11.4]} 23. Bxe5 {[%clk 0:00:23.6]} 23... fxe5 {[%clk
0:00:12.3]} 24. Ng5 {[%clk 0:00:24.3]} 24... Qd2 {[%clk 0:00:05.9]} 25. Rg3
{[%clk 0:00:21.6]} 25... Bf6 {[%clk 0:00:04.3]} 26. Bh5 {[%clk 0:00:03.1]} 26...
Bxg5 {[%clk 0:00:03.3]} 27. Bxg6 {[%clk 0:00:03.7]} 27... hxg6 {[%clk
0:00:02.9]} 28. Qd7 {[%clk 0:00:04.6]} 28... Re7 {[%clk 0:00:02.5]} 29. Qb5
{[%clk 0:00:04.7]} 1-0

[Event "Early-Titled-Tuesday-Blitz-June-18-2024"]
[Site "Chess.com"]
[Date "2024.06.18"]
[Round "7"]
[White "evgchess5"]
[Black "Individoom"]
[Result "1-0"]
[WhiteElo "2931"]
[BlackElo "2789"]
[TimeControl "180+1"]
[EndTime "9:20:05 PDT"]
[Termination "evgchess5 won by resignation"]

1. e4 {[%clk 0:02:59]} 1... c5 {[%clk 0:02:58.1]} 2. Nf3 {[%clk 0:02:58.9]} 2...
g6 {[%clk 0:02:56.1]} 3. c3 {[%clk 0:02:57.4]} 3... Bg7 {[%clk 0:02:55.4]} 4. d4
{[%clk 0:02:57.2]} 4... cxd4 {[%clk 0:02:55.7]} 5. cxd4 {[%clk 0:02:57.8]} 5...
d5 {[%clk 0:02:56.1]} 6. e5 {[%clk 0:02:58.3]} 6... Nc6 {[%clk 0:02:55.6]} 7.
Bb5 {[%clk 0:02:55.9]} 7... Nh6 {[%clk 0:02:54.9]} 8. h3 {[%clk 0:02:50.9]} 8...
O-O {[%clk 0:02:54.1]} 9. O-O {[%clk 0:02:50.6]} 9... f6 {[%clk 0:02:53.3]} 10.
Nc3 {[%clk 0:02:46.1]} 10... fxe5 {[%clk 0:02:38.1]} 11. Bxc6 {[%clk 0:02:41]}
11... bxc6 {[%clk 0:02:13.9]} 12. Nxe5 {[%clk 0:02:41]} 12... Qd6 {[%clk
0:02:13.3]} 13. Re1 {[%clk 0:02:24]} 13... Rb8 {[%clk 0:01:32.3]} 14. b3 {[%clk
0:02:14.9]} 14... Nf7 {[%clk 0:00:56.4]} 15. Bf4 {[%clk 0:02:10.6]} 15... Nxe5
{[%clk 0:00:53.4]} 16. Bxe5 {[%clk 0:02:10]} 16... Bxe5 {[%clk 0:00:52.6]} 17.
Rxe5 {[%clk 0:02:09.7]} 17... Rf5 {[%clk 0:00:37.8]} 18. Rxf5 {[%clk 0:01:53.7]}
18... Bxf5 {[%clk 0:00:37.2]} 19. Qe2 {[%clk 0:01:54.4]} 19... Qb4 {[%clk
0:00:25]} 20. Qe3 {[%clk 0:01:41.8]} 20... Rf8 {[%clk 0:00:19.6]} 21. Na4 {[%clk
0:01:31.9]} 21... Qd6 {[%clk 0:00:13.8]} 22. Re1 {[%clk 0:01:29.9]} 22... Rf7
{[%clk 0:00:13.9]} 23. Nc5 {[%clk 0:01:27.2]} 23... Kg7 {[%clk 0:00:14.1]} 24.
Qd2 {[%clk 0:01:18]} 24... Bc8 {[%clk 0:00:12.7]} 25. Re5 {[%clk 0:01:16.9]}
25... Rf5 {[%clk 0:00:11.5]} 26. Qe3 {[%clk 0:01:01.4]} 26... Rxe5 {[%clk
0:00:10.9]} 27. dxe5 {[%clk 0:01:01.8]} 27... Qc7 {[%clk 0:00:11.2]} 28. Qd4
{[%clk 0:00:54.7]} 28... Qa5 {[%clk 0:00:10.5]} 29. a4 {[%clk 0:00:43.5]} 29...
Qe1+ {[%clk 0:00:10.1]} 30. Kh2 {[%clk 0:00:44.2]} 30... Kf7 {[%clk 0:00:08.2]}
31. b4 {[%clk 0:00:41.5]} 31... h5 {[%clk 0:00:06.5]} 32. h4 {[%clk 0:00:39.4]}
32... Bf5 {[%clk 0:00:06.1]} 33. b5 {[%clk 0:00:36.4]} 33... cxb5 {[%clk
0:00:06.3]} 34. axb5 {[%clk 0:00:34.3]} 34... e6 {[%clk 0:00:04.9]} 35. Nb7
{[%clk 0:00:26.7]} 35... Qb1 {[%clk 0:00:02.2]} 36. Nd6+ {[%clk 0:00:23.8]}
36... Kg7 {[%clk 0:00:02.3]} 37. Qxa7+ {[%clk 0:00:23.7]} 37... Kh6 {[%clk
0:00:02.6]} 38. Nf7+ {[%clk 0:00:21.7]} 38... Kg7 {[%clk 0:00:02.9]} 39. Ng5+
{[%clk 0:00:21.7]} 1-0